bitfinex-derivatives/quotes_SOLF0:USTF0_20240920
["timestamp","ask_amount","ask_price","bid_price","bid_amount"]
[1726797673171,16.88,142.31,142.23,16.88]
[1726797673368,12.56587014,142.3,142.23,16.88]
[1726797673568,3.5135,142.28,142.24,3.5141]
[1726797680684,16.88,142.31,142.25,3.5139]
[1726797681573,3.5133,142.28,142.24,3.5141]
[1726797682181,16.88,142.31,142.23,16.88]
[1726797682379,2.7486,142.32,142.24,16.88]
[1726797682784,3.5129,142.3,142.26,3.5135]
[1726797685388,3.5129,142.3,142.24,16.88]
[1726797685389,3.5126,142.31,142.27,3.5135]
[1726797685688,2.7486,142.32,142.24,16.88]
[1726797685986,13.5386,142.32,142.27,10.79]
[1726797686776,3.5128,142.3,142.27,10.79]
[1726797687079,2.7486,142.32,142.27,10.79]
[1726797687381,10.79,142.3,142.25,10.79]
[1726797687787,3.5139,142.26,142.21,1.3724]
[1726797687988,3.56970993,142.26,142.21,10.79]
[1726797688182,10.79,142.25,142.21,10.79]
[1726797688481,6.95791339,142.24,142.21,10.79]
[1726797688880,3.5144,142.24,142.21,10.79]
[1726797689584,12.2307,142.27,142.23,10.79]
[1726797689886,4.89340362,142.27,142.2,16.88]
[1726797690088,3.5139,142.26,142.22,3.5146]
[1726797691382,3.514,142.25,142.22,3.5146]
[1726797691577,4.89340362,142.27,142.22,3.5146]
[1726797691989,3.5139,142.26,142.22,3.5146]
[1726797693977,3.5139,142.26,142.14,1.408]
[1726797693978,21.77340362,142.27,142.19,16.88]
[1726797694186,23.24060362,142.27,142.19,16.88]
[1726797694386,23.24060362,142.27,142.2,3.5151]
[1726797695388,3.5143,142.24,142.2,3.5151]
[1726797695885,3.5143,142.24,142.19,16.88]
[1726797695886,3.5143,142.24,142.21,3.515]
[1726797697088,3.5141,142.25,142.21,3.515]
[1726797697282,3.5141,142.25,142.19,16.88]
[1726797697283,6.36060362,142.27,142.22,3.5147]
[1726797697688,3.5142,142.25,142.21,3.5148]
[1726797701192,3.5142,142.25,142.2,16.88]
[1726797701496,6.36060362,142.27,142.22,16.88]
[1726797702396,9.87410362,142.27,142.23,3.5144]
[1726797705697,9.87410362,142.27,142.24,3.5142]
[1726797706800,8.40690362,142.27,142.24,3.5142]
[1726797709696,12.56599545,142.3,142.24,3.5142]
[1726797709697,3.5134,142.28,142.24,20.3942]
[1726797709896,3.5134,142.28,142.26,10.79]
[1726797711298,3.5131,142.29,142.26,10.79]
[1726797711504,12.56588715,142.31,142.28,10.79]
[1726797711703,12.1872,142.32,142.28,10.79]
[1726797712297,3.5126,142.31,142.28,10.79]
[1726797712505,1.3972,142.32,142.3,10.79]
[1726797713002,4.9096,142.32,142.3,10.79]
[1726797715207,140.64,142.4,142.31,10.79]
[1726797715408,10.79,142.35,142.31,10.79]
[1726797715613,14.2664191,142.35,142.31,10.79]
[1726797716913,3.4764191,142.35,142.31,10.79]
[1726797717111,23.35095873,142.36,142.31,10.79]
[1726797717112,10.79,142.36,142.31,10.79]
[1726797717610,14.26044406,142.36,142.31,10.79]
[1726797718207,3.512,142.34,142.31,10.79]
[1726797719111,10.79,142.33,142.28,10.79]
[1726797719308,10.79,142.33,142.29,10.79]
[1726797719514,3.5124,142.32,142.29,10.79]
[1726797721105,10.79,142.33,142.28,10.79]
[1726797721106,3.5126,142.31,142.28,10.79]
[1726797721617,10.79,142.31,142.26,10.79]
[1726797722011,3.5132,142.29,142.26,10.79]
[1726797728316,3.58095197,142.28,142.21,1.4136]
[1726797728527,10.79,142.28,142.24,10.79]
[1726797728725,14.25636713,142.28,142.24,10.79]
[1726797729820,3.46636713,142.28,142.25,10.79]
[1726797730020,13.5951,142.32,142.27,10.79]
[1726797730421,13.5951,142.32,142.27,14.3035]
[1726797730617,2.8051,142.32,142.29,10.79]
[1726797730818,2.8051,142.32,142.3,10.79]
[1726797731018,1.4059,142.32,142.3,10.79]
[1726797731723,3.5121,142.33,142.3,10.79]
[1726797731916,3.5121,142.33,142.29,20.393]
[1726797732531,3.5123,142.32,142.28,3.5132]
[1726797733029,3.5122,142.33,142.28,3.5132]
[1726797733230,3.5122,142.33,142.29,3.513]
[1726797734222,3.5119,142.34,142.29,3.513]
[1726797735726,3.47044406,142.36,142.28,16.88]
[1726797735928,18.2417,142.37,142.28,16.88]
[1726797736429,3.5118,142.34,142.3,3.5126]
[1726797737129,3.5117,142.35,142.3,20.3926]
[1726797737316,4.83671321,142.37,142.3,16.88]
[1726797738419,4.83671321,142.37,142.32,20.3921]
[1726797738622,4.83671321,142.37,142.32,16.88]
[1726797738820,4.83671321,142.37,142.25,16.88]
[1726797739029,3.5117,142.35,142.3,16.88]
[1726797739838,4.83671321,142.37,142.3,16.88]
[1726797741424,3.5116,142.35,142.31,3.5123]
[1726797741625,4.83671321,142.37,142.3,16.88]
[1726797742827,3.5114,142.36,142.32,3.5122]
[1726797745534,3.5114,142.36,142.32,20.3922]
[1726797750039,3.5116,142.35,142.32,20.3922]
[1726797750635,3.5118,142.34,142.32,16.88]
[1726797750939,4.83671321,142.37,142.32,16.88]
[1726797751135,3.5118,142.35,142.32,16.88]
[1726797751345,4.83671321,142.37,142.32,16.88]
[1726797751838,3.5117,142.35,142.32,16.88]
[1726797752041,3.5117,142.35,142.33,10.8]
[1726797752739,4.83671321,142.37,142.33,10.8]
[1726797753333,3.5116,142.35,142.33,10.8]
[1726797756349,3.5116,142.35,142.25,93.88730697]
[1726797756350,1.3617,142.37,142.34,10.8]
[1726797756547,4.90380037,142.37,142.34,10.8]
[1726797756839,3.5115,142.36,142.33,10.8]
[1726797757046,4.90380037,142.37,142.33,10.8]
[1726797757047,15.70380037,142.37,142.33,10.8]
[1726797757445,1.3617,142.37,142.34,10.8]
[1726797757850,4.8729,142.37,142.35,10.8]
[1726797758045,1.3617,142.37,142.35,10.8]
[1726797759244,3.511,142.38,142.35,10.8]
[1726797759442,10.8,142.41,142.37,10.8]
[1726797759651,14.25495346,142.41,142.37,10.8]
[1726797760145,3.5108,142.39,142.37,10.8]
[1726797760545,14.25495346,142.41,142.37,10.8]
[1726797761144,3.5108,142.38,142.37,10.8]
[1726797761847,3.5108,142.38,142.36,10.8]
[1726797763047,3.5106,142.39,142.36,10.8]
[1726797763251,3.5106,142.39,142.37,10.8]
[1726797763446,3.5104,142.4,142.37,10.8]
[1726797763751,3.5104,142.4,142.38,10.8]
[1726797763954,3.45495346,142.41,142.38,10.8]
[1726797764249,10.8,142.43,142.38,10.8]
[1726797764844,3.5106,142.39,142.38,10.8]
[1726797765041,3.5106,142.39,142.37,10.8]
[1726797765240,3.5111,142.37,142.34,10.8]
[1726797766042,3.5111,142.37,142.35,10.8]
[1726797766641,6.94755879,142.38,142.35,10.8]
[1726797766842,3.5109,142.38,142.35,10.8]
[1726797767552,6.98163729,142.38,142.35,10.8]
[1726797768444,3.47073729,142.38,142.35,10.8]
[1726797768755,10.8,142.4,142.35,10.8]
[1726797768950,14.32659793,142.4,142.35,10.8]
[1726797769550,3.5109,142.38,142.35,10.8]
[1726797769853,10.8,142.39,142.35,10.8]
[1726797770656,3.511,142.38,142.35,10.8]
[1726797774963,3.5107,142.39,142.36,10.8]
[1726797776758,3.5101,142.41,142.38,10.8]
[1726797776963,3.5101,142.41,142.39,10.8]
[1726797777768,3.59360219,142.42,142.38,10.8]
[1726797777967,3.5105,142.4,142.38,10.8]
[1726797778170,7.09742655,142.4,142.38,10.8]
[1726797779870,3.5108,142.38,142.37,10.8]
[1726797781561,3.5107,142.39,142.37,10.8]
[1726797782369,6.94244829,142.39,142.37,10.8]
[1726797783565,3.5108,142.38,142.37,10.8]
[1726797784872,6.96072417,142.39,142.37,10.8]
[1726797786673,2.887,142.44,142.31,3.53643502]
[1726797786674,13.687,142.44,142.38,10.8]
[1726797786870,13.687,142.44,142.4,10.8]
[1726797787773,3.51,142.42,142.4,10.8]
[1726797787974,3.56534441,142.42,142.4,10.8]
[1726797788273,3.5101,142.41,142.4,10.8]
[1726797790074,7.0520586,142.42,142.4,10.8]
[1726797790273,3.5099,142.42,142.4,10.8]
[1726797790871,3.5097,142.43,142.4,10.8]
[1726797791675,3.5098,142.42,142.4,10.8]
[1726797792073,1.4464,142.44,142.41,10.8]
[1726797792481,1.3862,142.49,142.43,10.8]
[1726797792777,3.5093,142.45,142.43,10.8]
[1726797795671,3.5087,142.47,142.44,10.8]
[1726797796574,12.2128,142.48,142.44,10.8]
[1726797797884,3.509,142.46,142.44,10.8]
[1726797798270,4.9212,142.48,142.45,10.8]
[1726797798878,4.9212,142.48,142.46,10.8]
[1726797799674,3.5084,142.48,142.46,10.8]
[1726797800177,3.5086,142.47,142.46,10.8]
[1726797800577,3.5082,142.49,142.46,10.8]
[1726797801380,3.5084,142.48,142.46,10.8]
[1726797802586,3.5084,142.48,142.45,10.8]
[1726797803476,3.5084,142.48,142.46,10.8]
[1726797804079,3.508,142.5,142.47,10.8]
[1726797804280,10.8,142.51,142.47,10.8]
[1726797804875,10.8,142.51,142.44,3.5093]
[1726797805083,10.8,142.51,142.46,10.8]
[1726797805782,3.5084,142.48,142.46,10.8]
[1726797806375,3.5084,142.48,142.46,10.77769307]
[1726797807486,3.5084,142.48,142.47,10.8]
[1726797812092,3.5081,142.49,142.47,10.8]
[1726797812391,10.8,142.53,142.48,10.8]
[1726797812687,3.508,142.5,142.48,10.8]
[1726797814190,10.8,142.51,142.44,3.5091]
[1726797814397,1.3869,142.5,142.46,10.8]
[1726797814784,3.5085,142.48,142.46,10.8]
[1726797815288,1.3869,142.5,142.47,10.8]
[1726797816287,3.5082,142.49,142.47,10.8]
[1726797816493,1.3869,142.5,142.48,10.8]
[1726797816785,1.3869,142.5,142.45,3.509]
[1726797816990,3.5082,142.49,142.46,10.8]
[1726797817695,3.5082,142.49,142.48,10.8]
[1726797827989,1.3869,142.5,142.48,10.8]
[1726797827990,4.8949,142.5,142.48,10.8]
[1726797828496,4.8949,142.5,142.49,10.8]
[1726797831103,3.5081,142.49,142.47,10.8]
[1726797837803,3.5081,142.49,142.44,3.5092]
[1726797838005,1.3869,142.5,142.44,3.5092]
[1726797838006,3.5084,142.48,142.44,3.5092]
[1726797838406,3.5084,142.48,142.46,10.8]
[1726797840711,3.5084,142.48,142.43,1.4485]
[1726797840712,10.8,142.48,142.36,140.42]
[1726797840917,10.8,142.48,142.43,10.8]
[1726797841118,3.509,142.46,142.44,10.8]
[1726797841422,3.509,142.46,142.45,10.8]
[1726797841813,3.56349058,142.47,142.44,10.8]
[1726797842022,10.8,142.48,142.44,10.8]
[1726797842417,3.5088,142.47,142.44,10.8]
[1726797842720,7.06526754,142.47,142.44,10.8]
[1726797843121,3.5089,142.46,142.44,10.8]
[1726797844115,1.4286,142.49,142.45,10.8]
[1726797844418,1.3869,142.5,142.47,10.8]
[1726797844718,3.5082,142.49,142.48,10.8]
[1726797845821,4.8949,142.5,142.48,10.8]
[1726797846211,1.4388,142.54,142.48,10.8]
[1726797846411,2.8483,142.54,142.49,10.8]
[1726797846616,10.8,142.52,142.49,10.8]
[1726797846818,3.5079,142.5,142.48,10.8]
[1726797847113,3.5079,142.5,142.47,10.8]
[1726797853729,3.5079,142.5,142.46,3.5087]
[1726797853730,3.5082,142.49,142.45,3.5089]
[1726797854029,10.8,142.5,142.45,10.8]
[1726797854218,2.8483,142.54,142.45,10.8]
[1726797854419,10.8,142.5,142.45,10.8]
[1726797854622,2.8483,142.54,142.46,10.8]
[1726797854820,3.508,142.5,142.46,14.3088]
[1726797857125,3.5081,142.49,142.45,3.509]
[1726797857325,3.5081,142.49,142.36,140.42]
[1726797857326,2.8483,142.54,142.36,140.42]
[1726797857531,10.8,142.48,142.43,10.8]
[1726797857927,3.47918628,142.47,142.44,10.8]
[1726797858131,10.8,142.48,142.44,10.8]
[1726797858330,2.8483,142.54,142.42,10.8]
[1726797858331,3.5091,142.46,142.42,10.8]
[1726797858527,3.56484075,142.45,142.42,10.8]
[1726797859228,7.07404075,142.45,142.42,10.8]
[1726797860239,3.5089,142.46,142.43,10.8]
[1726797860537,3.5089,142.46,142.44,10.8]
[1726797861335,7.00122591,142.47,142.44,10.8]
[1726797863434,3.5088,142.46,142.44,10.8]
[1726797863735,3.49252591,142.47,142.45,10.8]
[1726797863938,3.5085,142.48,142.45,10.8]
[1726797864233,3.44596375,142.47,142.45,10.8]
[1726797867638,3.44596375,142.47,142.37,1.4479]
[1726797867639,3.5086,142.47,142.42,3.5097]
[1726797867835,3.45555804,142.46,142.43,10.8]
[1726797868136,10.8,142.46,142.42,10.8]
[1726797868340,7.04901426,142.45,142.37,1.4479]
[1726797868638,7.04901426,142.45,142.42,10.8]
[1726797869131,7.04901426,142.45,142.37,1.4479]
[1726797869132,3.5089,142.46,142.44,10.8]
[1726797869330,10.8,142.49,142.45,10.8]
[1726797869933,3.5085,142.48,142.45,10.8]
[1726797870141,12.5465029,142.52,142.46,10.8]
[1726797870343,10.8,142.5,142.46,10.8]
[1726797870642,3.5083,142.49,142.46,10.8]
[1726797871046,10.8,142.49,142.43,3.5095]
[1726797871338,10.8,142.47,142.44,10.8]
[1726797871537,14.32321177,142.47,142.44,10.8]
[1726797871740,14.32321177,142.47,142.42,10.8]
[1726797872138,10.8,142.46,142.42,10.8]
[1726797872442,14.309,142.46,142.42,10.8]
[1726797872947,3.58676582,142.45,142.42,10.8]
[1726797874039,7.09586582,142.45,142.42,10.8]
[1726797874844,3.58676582,142.45,142.41,10.8]
[1726797875843,3.58676582,142.45,142.32,140.44]
[1726797875844,10.8,142.42,142.32,140.44]
[1726797876136,10.8,142.4,142.36,10.8]
[1726797876341,10.8,142.39,142.35,10.8]
[1726797876841,3.511,142.38,142.35,10.8]
[1726797877437,3.511,142.38,142.35,14.3115]
[1726797878546,3.511,142.38,142.34,14.3117]
[1726797878943,3.511,142.38,142.34,10.8]
[1726797878944,10.8,142.38,142.34,10.8]
[1726797879142,10.8,142.37,142.31,93.85448721]
[1726797879445,3.5116,142.35,142.32,10.8]
[1726797880448,14.3113,142.36,142.32,14.3122]
[1726797881039,14.3113,142.36,142.31,93.85448721]
[1726797881040,14.3111,142.37,142.31,93.85448721]
[1726797881348,3.5111,142.37,142.34,10.8]
[1726797882048,15.7356,142.38,142.34,10.8]
[1726797883246,15.7356,142.38,142.34,14.3118]
[1726797883446,3.54837644,142.39,142.35,10.8]
[1726797883649,10.8,142.4,142.35,10.8]
[1726797883848,3.54195382,142.39,142.35,14.3114]
[1726797884250,3.54195382,142.39,142.35,10.8]
[1726797884450,3.54195382,142.39,142.35,14.3114]
[1726797884655,3.54195382,142.39,142.34,10.8]
[1726797884656,10.8,142.39,142.34,10.8]
[1726797884848,14.26781908,142.39,142.34,10.8]
[1726797885043,14.26781908,142.39,142.34,14.3118]
[1726797885449,3.511,142.38,142.33,3.5119]
[1726797885650,14.311,142.38,142.33,14.3119]
[1726797886459,3.5111,142.37,142.33,14.3119]
[1726797886655,10.8,142.38,142.33,10.8]
[1726797887458,3.5112,142.37,142.33,14.3119]
[1726797887861,3.5112,142.37,142.33,3.5119]
[1726797888779,3.5109,142.38,142.31,110.72448721]
[1726797888967,3.46781908,142.39,142.31,110.72448721]
[1726797888968,3.46781908,142.39,142.32,1.4484]
[1726797889468,3.5108,142.38,142.32,1.4484]
[1726797890071,3.5108,142.38,142.34,3.5115]
[1726797890874,3.5108,142.38,142.35,3.5115]
[1726797895570,3.5108,142.38,142.34,3.5117]
[1726797896980,3.5108,142.38,142.35,3.5115]
[1726797902579,18.3255,142.44,142.35,16.87]
[1726797902783,21.75888684,142.44,142.35,16.87]
[1726797903077,4.88888684,142.44,142.37,16.87]
[1726797903676,16.87,142.42,142.33,16.87]
[1726797903981,16.87,142.39,142.32,1.4484]
[1726797904282,16.87,142.39,142.31,93.85448721]
[1726797904596,1.4582,142.38,142.31,93.85448721]
[1726797904782,4.9691,142.38,142.34,3.5116]
[1726797907178,3.5109,142.38,142.34,3.5116]
[1726797907390,16.87,142.39,142.31,93.85448721]
[1726797907574,16.87,142.38,142.31,93.85448721]
[1726797907979,10.8,142.35,142.31,104.65448721]
[1726797909179,3.52579041,142.36,142.29,3.513]
[1726797909180,3.5123,142.32,142.29,3.513]
[1726797909478,14.3123,142.32,142.28,10.8]
[1726797909982,14.3123,142.32,142.28,14.3132]
[1726797910183,3.5123,142.32,142.28,10.8]
[1726797910377,3.5121,142.33,142.29,14.3128]
[1726797910581,14.3121,142.33,142.29,14.3128]
[1726797910779,10.8,142.32,142.29,3.5128]
[1726797910975,14.3123,142.32,142.28,14.3132]
[1726797911582,10.8,142.3,142.27,3.5134]
[1726797912085,14.3128,142.3,142.27,3.5134]
[1726797912383,10.8,142.29,142.24,10.8]
[1726797912585,14.3126,142.31,142.27,10.8]
[1726797912883,14.3126,142.31,142.27,14.3133]
[1726797913079,10.8,142.31,142.27,10.8]
[1726797913284,10.8,142.31,142.19,1.4539]
[1726797913489,10.8,142.3,142.26,10.8]
[1726797914585,10.8,142.3,142.26,14.3136]
[1726797914586,14.3129,142.3,142.26,14.3136]
[1726797915981,10.8,142.27,142.19,5.00954489]
[1726797916181,2.7876,142.35,142.23,10.8]
[1726797916592,10.8,142.27,142.24,3.5141]
[1726797916785,3.43906078,142.27,142.24,3.5141]
[1726797916983,14.23906078,142.27,142.24,3.5141]
[1726797917589,10.8,142.27,142.24,3.5141]
[1726797917792,14.3139,142.26,142.22,3.5147]
[1726797918288,3.5139,142.26,142.22,10.8]
[1726797919086,14.3136,142.27,142.23,3.5143]
[1726797919291,2.7876,142.35,142.23,10.8]
[1726797919484,10.8,142.29,142.23,10.8]
[1726797920694,14.3133,142.29,142.25,3.5138]
[1726797922692,14.3133,142.29,142.25,14.3138]
[1726797922986,14.3133,142.29,142.26,3.5137]
[1726797923508,3.5129,142.3,142.27,3.5135]
[1726797923697,2.7876,142.35,142.27,10.8]
[1726797923698,10.8,142.31,142.27,10.8]
[1726797924190,10.8,142.31,142.27,14.3133]
[1726797924495,10.8,142.31,142.27,3.5133]
[1726797924685,10.8,142.31,142.26,10.8]
[1726797924889,10.8,142.28,142.24,10.8]
[1726797925487,14.3133,142.28,142.25,3.5139]
[1726797925695,10.8,142.28,142.25,3.5139]
[1726797927100,10.8,142.29,142.26,14.3137]
[1726797927398,3.5129,142.3,142.26,14.3137]
[1726797928091,3.5129,142.3,142.27,3.5135]
[1726797929296,14.3126,142.31,142.27,3.5135]
[1726797930600,10.8,142.29,142.26,14.3137]
[1726797930802,14.30527721,142.28,142.23,10.8]
[1726797931100,10.8,142.27,142.22,10.8]
[1726797931603,17.76102925,142.28,142.25,3.5139]
[1726797931804,3.5134,142.28,142.25,3.5139]
[1726797931997,14.3134,142.28,142.25,3.5139]
[1726797932393,17.7743867,142.28,142.25,3.5139]
[1726797932606,14.3134,142.28,142.25,3.5139]
[1726797933701,14.3137,142.27,142.22,10.8]
[1726797933998,10.8,142.27,142.22,10.8]
[1726797934306,17.8358536,142.27,142.24,3.5142]
[1726797934800,3.5138,142.26,142.23,3.5144]
[1726797935002,14.3138,142.26,142.23,3.5144]
[1726797936001,10.8,142.26,142.23,3.5144]
[1726797936301,10.8,142.25,142.21,10.8]
[1726797936897,3.5142,142.25,142.22,3.5147]
[1726797937096,3.5142,142.25,142.21,10.8]
[1726797938903,3.5142,142.25,142.23,3.5145]
[1726797939303,17.83675365,142.26,142.23,3.5145]
[1726797939602,14.3139,142.26,142.23,3.5145]
[1726797940100,17.88376046,142.26,142.23,3.5145]
[1726797940806,3.5142,142.25,142.22,14.3147]
[1726797945503,3.5142,142.25,142.23,3.5145]
[1726797945906,10.8,142.24,142.16,93.94921966]
[1726797946208,10.8,142.23,142.18,10.8]
[1726797946404,3.5149,142.22,142.19,3.5154]
[1726797946602,10.8,142.23,142.18,10.8]
[1726797947005,3.60130533,142.22,142.18,10.8]
[1726797947711,10.8,142.23,142.19,10.8]
[1726797947905,10.8,142.24,142.19,10.8]
[1726797948403,14.35664943,142.24,142.19,10.8]
[1726797948911,14.35664943,142.24,142.17,3.43006576]
[1726797948912,14.35664943,142.24,142.2,10.8]
[1726797950311,6.2538,142.25,142.17,3.54694825]
[1726797950312,1.3361,142.25,142.23,10.8]
[1726797950515,3.54167372,142.26,142.23,10.8]
[1726797950813,10.8,142.28,142.23,10.8]
[1726797951006,14.39617724,142.28,142.24,3.5142]
[1726797951408,3.59617724,142.28,142.23,10.8]
[1726797951708,10.8,142.29,142.24,10.8]
[1726797951915,3.46888515,142.28,142.24,10.8]
[1726797952103,2.8553,142.32,142.24,10.8]
[1726797952414,2.8553,142.32,142.2,3.44234936]
[1726797952415,10.8,142.3,142.26,10.8]
[1726797953012,10.8,142.29,142.25,10.8]
[1726797953815,10.8,142.29,142.26,3.5137]
[1726797955017,3.5128,142.3,142.26,3.5137]
[1726797955213,10.8,142.29,142.26,3.5137]
[1726797955815,10.8,142.28,142.25,3.514]
[1726797956616,10.8,142.28,142.26,3.5138]
[1726797958420,10.8,142.29,142.27,3.5135]
[1726797959815,14.23602936,142.28,142.23,10.8]
[1726797960019,14.23602936,142.28,142.2,3.47117623]
[1726797960020,10.8,142.27,142.22,10.8]
[1726797960208,14.3135,142.27,142.24,3.5141]
[1726797960412,14.3135,142.27,142.18,95.34581409]
[1726797960413,10.8,142.25,142.18,95.34581409]
[1726797960612,10.8,142.23,142.21,3.515]
[1726797960808,14.29684092,142.23,142.21,3.515]
[1726797961318,3.5142,142.25,142.19,10.8]
[1726797961522,10.8,142.25,142.2,10.8]
[1726797961720,16.95947482,142.26,142.21,10.8]
[1726797961920,1.3623,142.26,142.24,3.5141]
[1726797962318,1.3623,142.26,142.23,10.8]
[1726797962620,17.85306653,142.28,142.24,3.514]
[1726797963619,17.85306653,142.28,142.25,3.514]
[1726797964321,3.5134,142.28,142.25,3.514]
[1726797964521,14.3131,142.29,142.25,3.514]
[1726797964722,3.45492832,142.28,142.25,3.514]
[1726797965322,14.3131,142.29,142.25,3.514]
[1726797965919,14.3131,142.29,142.26,3.5138]
[1726797965920,10.8,142.29,142.26,3.5138]
[1726797967017,14.3131,142.29,142.25,3.5139]
[1726797967728,14.3133,142.28,142.24,3.5142]
[1726797967919,10.8,142.26,142.22,10.8]
[1726797968119,10.8,142.26,142.23,3.5143]
[1726797968620,10.8,142.25,142.23,3.5143]
[1726797969322,14.3139,142.26,142.23,3.5143]
[1726797978222,12.2676,142.27,142.23,10.8]
[1726797978421,1.4676,142.27,142.17,3.42772366]
[1726797978731,12.2676,142.27,142.25,3.5139]
[1726797979229,3.5132,142.29,142.26,3.5136]
[1726797979526,14.3132,142.29,142.26,3.5136]
[1726797984033,14.3135,142.28,142.24,14.3141]
[1726797984235,14.2933258,142.27,142.24,3.5141]
[1726797984634,3.5138,142.26,142.23,3.5144]
[1726797984836,14.3138,142.26,142.22,10.8]
[1726797985033,3.4933258,142.27,142.16,93.9519849]
[1726797985034,10.8,142.25,142.16,95.3324849]
[1726797985228,14.3142,142.25,142.21,10.8]
[1726797985738,14.3142,142.25,142.22,3.5146]
[1726797986037,14.3142,142.25,142.21,10.8]
[1726797986337,3.5142,142.25,142.22,10.8]
[1726797986736,10.8,142.26,142.22,10.8]
[1726797987342,3.5138,142.26,142.23,14.3143]
[1726797990346,3.5138,142.26,142.24,3.5142]
[1726797991049,3.5138,142.26,142.23,14.3143]
[1726797992341,3.5138,142.26,142.23,3.5143]
[1726797992548,14.3142,142.25,142.22,3.5146]
[1726797993246,3.5143,142.24,142.22,3.5146]
[1726797993444,3.5143,142.24,142.21,3.5149]
[1726797993649,3.5143,142.24,142.2,10.8]
[1726797994753,10.8,142.26,142.22,10.8]
[1726797995249,14.3139,142.26,142.23,3.5143]
[1726797995449,4.9333258,142.27,142.23,10.8]
[1726797995647,8.4470258,142.27,142.24,3.5141]
[1726797998955,19.2470258,142.27,142.24,3.5141]
[1726798002251,10.8,142.25,142.17,3.5138562]
[1726798002457,10.8,142.25,142.2,10.8]
[1726798002855,14.3141,142.25,142.22,3.5147]
[1726798004361,14.3141,142.25,142.2,10.8]
[1726798004655,3.5139,142.26,142.22,10.8]
[1726798005358,3.5139,142.26,142.23,3.5145]
[1726798011163,3.5141,142.25,142.22,3.5146]
[1726798011362,10.8,142.23,142.16,1.3805]
[1726798011563,10.8,142.19,142.15,93.95518143]
[1726798011866,3.5159,142.18,142.15,97.47148143]
[1726798012464,3.5158,142.18,142.15,93.95518143]
[1726798012962,3.5158,142.18,142.15,97.47158143]
[1726798013362,14.23886393,142.19,142.15,108.27158143]
[1726798013363,17.75446393,142.19,142.15,108.27158143]
[1726798013959,17.75446393,142.19,142.16,3.5162]
[1726798014968,14.3156,142.19,142.16,3.5162]
[1726798015959,17.90460038,142.19,142.16,3.5162]
[1726798016164,7.10460038,142.19,142.16,14.3162]
[1726798016770,7.10460038,142.19,142.16,3.5162]
[1726798020670,17.90460038,142.19,142.16,3.5162]
[1726798023777,3.5154,142.2,142.15,104.75518143]
[1726798023975,10.8,142.21,142.16,10.8]
[1726798024177,4.9333258,142.27,142.17,10.8]
[1726798024478,3.515,142.21,142.18,3.5155]
[1726798024778,4.9333258,142.27,142.17,10.8]
[1726798025075,10.8,142.22,142.19,3.5154]
[1726798025580,3.5148,142.22,142.19,10.8]
[1726798025781,10.8,142.24,142.19,10.8]
[1726798026374,14.3143,142.24,142.19,10.8]